bitfinex-derivatives/quotes_ETHF0:USTF0_20250505
["timestamp","ask_amount","ask_price","bid_price","bid_amount"]
[1746412394816,0.70940364,1797.6,1797.5,17.04194145]
[1746412395820,0.70940364,1797.6,1797.5,10.92934145]
[1746412396624,1.11251,1797.7,1797.5,10.92934145]
[1746412396816,1.11251,1797.7,1797.6,6.9463]
[1746412397217,4.47221,1797.7,1797.6,6.9463]
[1746412397517,1.11253,1797.6,1797.5,7.36114145]
[1746412397825,7.98922883,1797.6,1797.5,7.36114145]
[1746412399327,18.81322883,1797.6,1797.5,3.41814145]
[1746412399527,18.81336305,1797.6,1797.5,3.41814145]
[1746412400227,21.93858139,1797.6,1797.5,3.41814145]
[1746412401221,21.62924834,1797.6,1797.5,3.41814145]
[1746412401421,21.93849013,1797.6,1797.5,3.41814145]
[1746412403019,1.11278,1797.2,1797.1,3.943]
[1746412403333,4.6296135,1797.2,1797.1,3.943]
[1746412404127,7.9808135,1797.2,1797.1,3.943]
[1746412405022,1.11284,1797.1,1797.0,3.732]
[1746412405225,8.07311338,1797.1,1797.0,0.79214145]
[1746412407735,13.07311338,1797.1,1797.0,0.79214145]
[1746412409134,1.11307,1796.8,1796.6,11.83883]
[1746412409336,4.32087,1796.8,1796.7,3.2201]
[1746412410135,3.2078,1796.8,1796.7,4.33319]
[1746412410537,4.32083,1796.8,1796.7,3.2201]
[1746412410829,3.2078,1796.8,1796.7,4.33319]
[1746412411230,3.2078,1796.8,1796.7,8.06519]
[1746412412838,3.91720364,1796.8,1796.7,8.06519]
[1746412417147,3.2078,1796.8,1796.7,8.06519]
[1746412418047,5.54437543,1797.0,1796.9,1.11297]
[1746412418242,5.54437543,1797.0,1796.9,8.77797]
[1746412418443,5.54437543,1797.0,1796.9,13.77797]
[1746412418643,5.54437543,1797.0,1796.9,12.17757]
[1746412419047,5.54437543,1797.0,1796.9,17.17757]
[1746412419550,5.54437543,1797.0,1796.9,12.17757]
[1746412421552,3.2078,1797.3,1796.9,12.17757]
[1746412421553,3.2078,1797.3,1797.2,1.11278]
[1746412421850,3.2078,1797.3,1797.2,5.04578]
[1746412422045,3.2078,1797.3,1797.2,8.77778]
[1746412423453,3.2078,1797.3,1797.2,7.665]
[1746412423649,4.32052,1797.3,1797.2,11.0034]
[1746412424045,7.74382,1797.3,1797.2,11.0034]
[1746412424252,7.74382,1797.3,1797.2,7.665]
[1746412424449,18.87629707,1797.3,1797.2,3.732]
[1746412424749,22.19859707,1797.3,1797.2,3.732]
[1746412425553,22.19888686,1797.3,1797.2,3.732]
[1746412426455,22.19921618,1797.3,1797.2,3.732]
[1746412427355,32.56868774,1797.3,1797.2,3.732]
[1746412429147,32.56903448,1797.3,1797.2,3.732]
[1746412430156,41.83482286,1797.3,1797.2,3.732]
[1746412430555,36.83482286,1797.3,1797.2,3.732]
[1746412431056,36.83495475,1797.3,1797.2,3.732]
[1746412433056,27.56928477,1797.3,1797.2,3.732]
[1746412434844,27.56931032,1797.3,1797.2,3.732]
[1746412435756,24.24701032,1797.3,1797.2,3.732]
[1746412435956,24.24701032,1797.3,1797.2,5.0]
[1746412436158,24.24701032,1797.3,1797.2,3.732]
[1746412436358,24.24701032,1797.3,1797.2,7.124]
[1746412436657,24.24695332,1797.3,1797.2,7.124]
[1746412437555,19.71093332,1797.3,1797.2,11.69878]
[1746412437752,19.40127156,1797.3,1797.2,15.63178]
[1746412438355,13.57727156,1797.3,1797.2,15.63178]
[1746412439758,13.57727156,1797.3,1797.2,20.63178]
[1746412440661,10.58576027,1797.3,1797.2,14.519]
[1746412440962,12.94474027,1797.3,1797.2,15.63178]
[1746412441461,9.47304027,1797.3,1797.2,15.63178]
[1746412443657,16.71926393,1797.3,1797.2,7.665]
[1746412443856,20.27566393,1797.3,1797.2,3.732]
[1746412444158,1.11284,1797.1,1797.0,3.4478]
[1746412444363,4.63014366,1797.1,1797.0,3.4478]
[1746412445163,8.36214366,1797.1,1797.0,3.4478]
[1746412445363,1.11291,1797.0,1796.9,3.921]
[1746412445565,4.58721,1797.0,1796.9,3.921]
[1746412445863,3.732,1797.1,1797.0,1.11291]
[1746412446065,3.732,1797.1,1797.0,4.56071]
[1746412446365,3.732,1797.1,1797.0,12.89211]
[1746412448271,4.44172401,1797.1,1797.0,12.89211]
[1746412450355,15.26572401,1797.1,1796.8,3.3482]
[1746412450668,4.32077,1796.9,1796.8,3.3482]
[1746412451064,3.2078,1796.9,1796.4,5.03427]
[1746412451365,4.32093,1796.7,1796.5,3.3011]
[1746412451665,3.4895,1796.6,1796.5,6.8017]
[1746412452168,7.2215,1796.6,1796.5,6.8017]
[1746412452369,8.33465,1796.6,1796.5,6.8017]
[1746412452570,7.2215,1796.6,1796.5,6.8017]
[1746412452767,7.2215,1796.6,1796.5,7.91492]
[1746412455372,8.33465,1796.6,1796.5,3.3011]
[1746412455668,24.74179798,1796.6,1796.5,1.11322]
[1746412456973,7.93122401,1796.6,1796.5,1.11322]
[1746412459466,7.93122401,1796.6,1796.5,4.39252]
[1746412459975,1.11322,1796.5,1796.4,4.68119909]
[1746412460273,11.47202,1796.5,1796.4,3.56794909]
[1746412460672,10.3588,1796.5,1796.4,4.68122909]
[1746412461876,11.47202,1796.5,1796.4,3.56794909]
[1746412463067,11.47202,1796.5,1796.4,0.12364909]
[1746412463571,1.11334,1796.4,1796.2,1.11339]
[1746412463764,7.76634,1796.3,1796.2,1.11339]
[1746412464169,11.49834,1796.3,1796.2,1.11339]
[1746412464879,10.385,1796.3,1796.2,1.11339]
[1746412465972,11.49836,1796.3,1796.1,8.42032]
[1746412466176,3.224,1796.2,1796.1,8.42032]
[1746412466377,4.3374,1796.2,1796.1,3.922]
[1746412466980,3.224,1796.2,1796.1,5.03546]
[1746412467277,6.956,1796.2,1796.1,5.03546]
[1746412468373,6.26987131,1796.3,1796.2,1.1134]
[1746412468580,12.56637636,1797.0,1796.8,1.11303]
[1746412468879,12.56637636,1797.0,1796.8,5.03503]
[1746412469079,15.93197636,1797.0,1796.8,5.03503]
[1746412469269,22.58602117,1796.9,1796.8,3.922]
[1746412469578,21.47305117,1796.9,1796.8,3.922]
[1746412469766,26.00082117,1796.9,1796.8,3.922]
[1746412470577,31.00082117,1796.9,1796.8,3.922]
[1746412470773,1.11306,1796.8,1796.6,1.11315]
[1746412470975,3.2078,1796.7,1796.6,1.11315]
[1746412471575,6.5734,1796.7,1796.6,1.11315]
[1746412471772,7.68649,1796.7,1796.5,8.54058]
[1746412471972,3.3387,1796.6,1796.5,8.54058]
[1746412472175,7.0707,1796.6,1796.5,8.54058]
[1746412472578,8.18385,1796.6,1796.5,3.912]
[1746412472774,7.0707,1796.6,1796.5,3.912]
[1746412473174,8.18385,1796.6,1796.5,3.912]
[1746412474180,7.0707,1796.6,1796.5,5.02522]
[1746412474381,8.18385,1796.6,1796.5,3.912]
[1746412475481,11.39165,1796.6,1796.5,3.912]
[1746412476181,13.9836968,1796.6,1796.5,5.02522]
[1746412476776,10.7758968,1796.6,1796.5,5.02522]
[1746412476980,7.4371968,1796.6,1796.5,8.37772]
[1746412477282,16.67670798,1797.5,1796.9,2.78228]
[1746412477582,12.28032117,1797.4,1797.2,1.11276]
[1746412477783,3.529,1797.3,1797.1,1.1128]
[1746412477978,1.11282,1797.2,1797.0,7.2164]
[1746412478175,3.732,1797.2,1797.0,7.2164]
[1746412478376,3.5127,1797.1,1797.0,8.32927]
[1746412478574,3.5127,1797.1,1797.0,7.2164]
[1746412478974,3.5127,1797.1,1797.0,8.32931]
[1746412479175,7.2447,1797.1,1797.0,8.32931]
[1746412479483,8.35754,1797.1,1797.0,7.2164]
[1746412479670,8.35754,1797.1,1797.0,3.912]
[1746412480175,7.2447,1797.1,1797.0,5.02491]
[1746412483785,3.732,1797.1,1797.0,5.02491]
[1746412485484,3.732,1797.1,1797.0,8.57441]
[1746412486692,3.2078,1797.3,1797.0,8.57441]
[1746412486889,9.32542478,1797.7,1797.6,1.11253]
[1746412487081,9.32542478,1797.7,1797.6,5.02353]
[1746412487588,9.32542478,1797.7,1797.6,5.51531617]
[1746412487785,9.32542478,1797.7,1797.6,8.53883]
[1746412488086,13.46890798,1797.7,1797.6,8.53883]
[1746412488288,17.20090798,1797.7,1797.6,8.53883]
[1746412488679,20.73880798,1797.7,1797.6,8.53883]
[1746412489980,4.39548463,1797.8,1797.7,1.11247]
[1746412490184,6.70503081,1797.9,1797.8,1.11241]
[1746412490587,6.70503081,1797.9,1797.8,4.37841]
[1746412491287,10.43703081,1797.9,1797.8,4.37841]
[1746412492287,10.43703081,1797.9,1797.8,8.28841]
[1746412492489,3.732,1797.9,1797.8,8.28841]
[1746412494483,9.24234617,1798.3,1798.2,1.11216]
[1746412494793,1.11192,1798.6,1798.2,7.1168]
[1746412495088,3.732,1798.6,1798.4,1.11203]
[1746412495288,3.4581,1798.5,1798.4,1.11203]
[1746412495488,3.4581,1798.5,1798.3,4.70026]
[1746412495690,3.4581,1798.5,1798.4,1.11204]
[1746412496084,7.1901,1798.5,1798.3,1.11208]
[1746412496283,7.1901,1798.5,1798.4,1.11204]
[1746412496986,7.1901,1798.5,1798.3,4.57136]
[1746412497192,8.30211,1798.5,1798.2,3.909]
[1746412497490,3.4121,1798.4,1798.2,3.909]
[1746412497686,3.732,1798.5,1798.2,7.1168]
[1746412497893,3.732,1798.5,1798.4,4.31984]
[1746412498284,3.732,1798.5,1798.4,7.77914]
[1746412501081,3.732,1798.5,1798.4,10.43981022]
[1746412501282,3.732,1798.5,1798.4,12.27605022]
[1746412501593,3.732,1798.5,1798.4,5.04404]
[1746412502188,9.844,1798.5,1797.9,6.7475]
[1746412502495,6.9265,1798.4,1798.3,1.1121]
[1746412502695,6.9265,1798.4,1798.3,5.0431]
[1746412503294,10.6585,1798.4,1798.3,5.0431]
[1746412504792,3.2078,1799.2,1798.6,2.77976]
[1746412504986,3.4385,1799.0,1798.9,1.11168]
[1746412506190,7.1705,1799.0,1798.9,1.11168]
[1746412506496,1.11175,1798.9,1798.7,3.931]
[1746412506694,3.6183,1798.9,1798.7,5.04282]
[1746412506891,3.6183,1798.9,1798.8,1.11179]
[1746412507195,3.6183,1798.9,1798.7,3.931]
[1746412507196,7.3503,1798.9,1798.7,3.931]
[1746412507397,2.37505,1798.9,1798.8,4.31959]
[1746412507600,2.37505,1798.9,1798.8,1.11179]
[1746412508787,5.68645,1798.9,1798.8,1.11179]
[1746412509390,5.68645,1798.9,1798.7,3.931]
[1746412509598,5.68645,1798.9,1798.7,5.04285]
[1746412509599,3.3114,1798.8,1798.7,5.04285]
[1746412510097,7.0434,1798.8,1798.7,5.04285]
[1746412511800,7.0434,1798.8,1798.7,3.931]
[1746412512394,12.0434,1798.8,1798.2,3.2078]
[1746412512600,1.11201,1798.5,1798.3,5.0431]
[1746412512800,10.3925,1798.4,1798.3,5.0431]
[1746412512994,11.50454,1798.4,1798.3,3.931]
[1746412513302,1.11219,1798.2,1798.0,3.931]
[1746412513598,4.32001,1798.2,1798.0,3.931]
[1746412513800,3.4749,1798.1,1798.0,3.931]
[1746412514701,3.4749,1798.1,1798.0,5.04329]
[1746412515101,7.2069,1798.1,1798.0,5.04329]
[1746412517000,4.31956,1798.9,1798.3,2.78019]
[1746412517200,3.3669,1798.8,1798.7,1.11182]
[1746412518297,7.0989,1798.8,1798.7,1.11182]
[1746412519698,7.0989,1798.8,1798.7,5.04282]
[1746412520208,7.0989,1798.8,1798.7,5.04285]
[1746412521609,7.0989,1798.8,1798.7,3.931]
[1746412522011,7.0989,1798.8,1798.7,5.04285]
[1746412522209,7.0989,1798.8,1798.7,3.931]
[1746412522506,1.11194,1798.6,1798.4,3.931]
[1746412522707,6.9801,1798.5,1798.4,3.931]
[1746412522901,10.3872,1798.5,1798.4,3.931]
[1746412523100,14.1192,1798.5,1798.4,5.04304]
[1746412523500,14.1192,1798.5,1798.4,3.931]
[1746412523795,14.1192,1798.5,1798.4,5.04304]
[1746412524216,2.10341,1798.5,1798.4,10.04304]
[1746412524413,3.0933,1799.2,1799.0,1.11162]
[1746412524605,3.0933,1799.2,1799.1,1.11161]
[1746412524811,3.0933,1799.2,1799.0,5.04265]
[1746412525006,4.20485,1799.2,1799.0,3.931]
[1746412525313,6.8253,1799.2,1799.1,1.11161]
[1746412526012,7.93688,1799.2,1799.0,5.04265]
[1746412526211,3.0933,1799.1,1799.0,5.04265]
[1746412527125,6.8253,1799.1,1799.0,5.04265]
[1746412527513,6.8253,1799.1,1799.0,3.931]
[1746412528112,6.8253,1799.1,1799.0,5.04267]
[1746412528501,2.61583,1799.1,1799.0,13.25047]
[1746412529712,2.61583,1799.1,1799.0,11.52627]
[1746412532212,1.0103,1799.1,1799.0,16.52627]
[1746412532417,5.53035009,1800.0,1799.0,15.4146]
[1746412532418,4.32202,1799.8,1799.0,15.4146]
[1746412532608,1.11122,1799.8,1799.5,1.11134]
[1746412532807,1.11124,1799.7,1799.5,5.19834]
[1746412533010,1.11124,1799.7,1799.5,5.18995635]
[1746412533211,4.84322,1799.8,1799.5,5.18995635]
[1746412533616,1.1113,1799.6,1799.5,4.087]
[1746412533818,1.11127,1799.7,1799.5,4.087]
[1746412534319,4.84327,1799.7,1799.5,4.087]
[1746412534616,8.05107,1799.7,1799.5,4.087]
[1746412534818,1.1113,1799.6,1799.5,4.087]
[1746412535314,4.8433,1799.6,1799.5,4.087]
[1746412535914,3.732,1799.6,1799.2,4.086]
[1746412536117,1.11146,1799.4,1799.2,4.086]
[1746412536323,1.11146,1799.4,1799.2,5.19752]
[1746412536517,9.556,1799.6,1799.5,1.11136]
[1746412536518,2.52123,1799.6,1799.5,1.11136]
[1746412536708,0.54412709,1799.6,1799.5,4.31916]
[1746412536908,0.54412709,1799.6,1799.5,8.40516]
[1746412537110,5.53035009,1800.0,1799.8,1.11113]
[1746412537310,5.53035009,1800.0,1799.8,4.086]
[1746412537519,9.68413009,1800.0,1799.8,4.086]
[1746412537817,3.2348,1799.9,1799.8,4.086]
[1746412538216,6.9668,1799.9,1799.8,4.086]
[1746412538719,8.07791,1799.9,1799.8,4.086]
[1746412540019,16.28571,1799.9,1799.8,4.086]
[1746412540210,11.28571,1799.9,1799.8,4.086]
[1746412540720,1.1113,1799.6,1799.5,4.086]
[1746412541120,4.8433,1799.6,1799.5,4.086]
[1746412541617,8.056,1799.6,1799.5,4.086]
[1746412542722,8.056,1799.6,1799.3,1.11146]
[1746412542723,1.11142,1799.4,1799.3,4.086]
[1746412543015,12.1612,1799.5,1798.9,51.981]
[1746412543315,3.732,1799.5,1799.1,3.2078]
[1746412543523,1.11142,1799.4,1799.2,1.11153]
[1746412543715,4.32412,1799.4,1799.2,1.11153]
[1746412543921,3.2127,1799.4,1799.2,1.11153]
[1746412544118,8.05613,1799.4,1799.2,8.27993]
[1746412544421,1.11148,1799.3,1799.2,7.1684]
[1746412544821,6.9447,1799.4,1799.2,4.086]
[1746412545022,8.05617,1799.4,1799.2,4.086]
[1746412545223,11.42087,1799.4,1799.2,4.086]
[1746412545819,0.20032533,1816.5,1799.7,1.11118]
[1746412545820,6.64143009,1800.0,1799.7,1.11118]
[1746412546125,13.58683009,1800.0,1799.7,4.086]
[1746412546327,13.58683009,1800.0,1799.7,5.19721]
[1746412546529,12.47575009,1800.0,1799.7,4.086]
[1746412546729,12.47575009,1800.0,1799.7,5.19723]
[1746412547120,13.58682009,1800.0,1799.8,1.11117]
[1746412547417,13.58682009,1800.0,1799.7,5.1972]
[1746412547821,12.47575009,1800.0,1799.8,1.11116]
[1746412548020,12.47575009,1800.0,1799.8,4.31896]
[1746412548529,13.58681009,1800.0,1799.8,4.31896]
[1746412548723,12.47575009,1800.0,1799.8,4.31896]
[1746412548930,9.26235009,1800.0,1799.9,7.52671]
[1746412549228,5.53035009,1800.0,1799.9,7.52671]
[1746412549616,5.53035009,1800.0,1799.9,6.4156]
[1746412550123,10.37340009,1800.0,1799.9,6.4156]
[1746412550326,10.37340009,1800.0,1799.8,1.11113]
[1746412550624,10.37343009,1800.0,1799.7,11.48392]
[1746412550826,6.533,1799.9,1799.7,11.48392]
[1746412551025,6.533,1799.9,1799.8,1.11117]
[1746412551221,10.265,1799.9,1799.8,1.11117]
[1746412551428,3.732,1799.9,1799.8,4.40547]
[1746412551623,2.34459,1799.9,1799.8,9.40547]
[1746412551825,2.34459,1799.9,1799.8,6.57497]
[1746412554328,2.34459,1799.9,1799.8,4.40547]
[1746412554524,2.34459,1799.9,1799.8,11.57717]
[1746412555125,5.53035009,1800.0,1799.9,1.11111]
[1746412555423,4.22767,1800.3,1800.0,1.11099]
[1746412555623,4.22773,1800.2,1800.1,4.085]
[1746412555932,10.51413,1800.2,1800.1,4.085]
[1746412556233,14.24613,1800.2,1800.1,4.085]
[1746412556826,3.732,1800.2,1800.1,5.19599]
[1746412557024,3.732,1800.2,1800.1,4.085]
[1746412557224,7.0319,1800.2,1800.1,4.085]
[1746412557937,7.0319,1800.2,1800.1,5.19599]
[1746412558330,8.14283,1800.2,1800.1,4.085]
[1746412558932,7.0319,1800.2,1800.1,4.085]
[1746412559135,8.14283,1800.2,1800.1,4.085]
[1746412559434,3.732,1800.2,1800.1,5.19599]
[1746412559632,7.0319,1800.2,1800.1,5.19599]
[1746412562334,3.732,1800.2,1800.1,5.19599]
[1746412562641,3.732,1800.2,1800.1,8.28759]
[1746412563325,3.732,1800.2,1800.1,4.085]
[1746412563326,4.84293,1800.2,1800.1,4.085]
[1746412563825,17.7638,1800.2,1799.8,4.137]
[1746412564026,4.31887,1800.0,1799.8,5.24811]
[1746412564229,3.2078,1800.0,1799.9,1.11111]
[1746412564436,3.2078,1800.0,1799.9,4.33601]
[1746412564640,3.2078,1800.0,1799.9,7.42761]
[1746412564839,3.732,1800.2,1800.1,1.11099]
[1746412565430,3.732,1800.2,1800.1,4.31879]
[1746412565733,3.732,1800.2,1800.1,11.49229]
[1746412566131,6.376,1800.6,1800.1,11.49229]
[1746412566338,3.2078,1800.6,1800.5,1.11074]
[1746412566538,8.84275009,1800.7,1800.6,1.11068]
[1746412566735,5.53035009,1800.7,1800.6,5.24768]
[1746412567437,8.84275009,1800.7,1800.6,5.24768]
[1746412567637,5.53035009,1800.7,1800.6,8.36558]
[1746412571040,5.53035009,1800.7,1800.6,11.57338]
[1746412571538,3.2514,1800.9,1800.8,1.11056]
[1746412571835,3.2514,1800.9,1800.7,4.33016]
[1746412572037,3.2514,1800.9,1800.7,4.33017]
[1746412572340,6.9834,1800.9,1800.8,1.11056]
[1746412572526,6.9834,1800.9,1800.7,3.2196]
[1746412572727,3.1913,1800.8,1800.7,1.11062]
[1746412573237,6.9233,1800.8,1800.7,1.11062]
[1746412573437,6.9233,1800.8,1800.7,4.40472]
[1746412574438,6.9233,1800.8,1800.6,7.3448]
[1746412574644,6.3391,1800.7,1800.6,5.24765]
[1746412575033,10.0711,1800.7,1800.6,5.24765]
[1746412576148,10.0711,1800.7,1800.6,8.45545]
[1746412576952,10.0711,1800.7,1800.6,4.31845]
[1746412577152,10.0711,1800.7,1800.6,8.45445]
[1746412577452,11.18172,1800.7,1800.6,4.136]
[1746412578154,1.11077,1800.5,1800.3,5.24686]
[1746412578454,6.4628,1800.4,1800.3,4.136]
[1746412579054,6.4628,1800.4,1800.3,5.24687]
[1746412579246,10.1948,1800.4,1800.3,5.24687]
[1746412579944,10.1948,1800.4,1800.3,8.38817]
[1746412581554,10.1948,1800.4,1800.3,5.24687]
[1746412581747,10.1948,1800.4,1800.3,4.136]
[1746412582256,19.5134,1800.4,1800.3,4.136]
[1746412582458,16.3056,1800.4,1800.3,4.136]
[1746412582754,11.3056,1800.4,1800.3,4.136]
[1746412585062,10.1948,1800.4,1800.3,5.24687]
[1746412585555,11.3056,1800.4,1800.3,4.136]
[1746412585965,14.5134,1800.4,1800.3,4.136]
[1746412586157,11.3056,1800.4,1800.3,4.136]
[1746412586463,14.5134,1800.4,1800.3,4.136]
[1746412586961,11.3056,1800.4,1800.3,4.136]
[1746412588567,14.5134,1800.4,1800.3,4.136]
[1746412590362,11.3056,1800.4,1800.3,4.136]
[1746412590758,14.5134,1800.4,1800.3,4.136]
[1746412591464,11.3056,1800.4,1800.3,4.136]
[1746412591666,14.5134,1800.4,1800.3,4.136]
[1746412591865,14.5134,1800.4,1800.0,51.946]
[1746412591866,1.11099,1800.1,1800.0,55.994]
[1746412592168,4.84299,1800.1,1800.0,4.048]
[1746412593364,4.84299,1800.1,1799.7,3.2078]
[1746412593365,1.11121,1799.8,1799.7,4.048]
[1746412594060,7.69831,1799.8,1799.7,4.048]
[1746412594265,11.43031,1799.8,1799.7,4.048]
[1746412595060,10.3191,1799.8,1799.7,5.15924]
[1746412595865,10.3191,1799.8,1799.7,8.49144]
[1746412596268,6.952,1799.8,1799.7,8.49144]
[1746412596467,3.732,1799.8,1799.7,13.49144]
[1746412598170,3.732,1799.8,1799.7,8.49144]
[1746412599369,3.0935,1799.9,1799.8,1.11117]
[1746412600171,6.8255,1799.9,1799.8,4.50137]
[1746412601270,6.8255,1799.9,1799.8,7.76847]
[1746412603471,6.8255,1799.9,1799.8,1.11117]
[1746412604068,6.8255,1799.9,1799.7,7.3871]
[1746412604273,3.1827,1799.8,1799.7,7.3871]
[1746412604570,3.1827,1799.8,1799.7,5.15924]
[1746412605374,6.9147,1799.8,1799.7,5.15924]
[1746412606074,6.9147,1799.8,1799.6,6.5469]
[1746412606075,15.1225,1799.8,1799.3,51.936]
[1746412606274,10.51478,1799.7,1799.4,5.15941]
[1746412606476,7.35713,1799.6,1799.4,4.048]
[1746412606677,3.1095,1799.5,1799.4,4.048]
[1746412607175,6.8415,1799.5,1799.4,4.048]
[1746412607379,6.8415,1799.5,1799.4,5.15942]
[1746412608379,7.95286,1799.5,1799.4,4.048]
[1746412608772,11.16066,1799.5,1799.4,4.048]
[1746412609076,1.11145,1799.4,1799.2,1.11154]
[1746412609378,7.66115,1799.4,1799.2,1.11154]
[1746412609880,6.5497,1799.4,1799.3,1.11148]
[1746412610180,10.2817,1799.4,1799.3,1.11148]
[1746412610485,11.39312,1799.4,1799.2,1.1115]
[1746412610679,3.4019,1799.3,1799.2,1.1115]
[1746412611181,7.1339,1799.3,1799.2,1.1115]
[1746412611389,1.11154,1799.2,1799.1,4.049]
[1746412611681,6.3283,1799.2,1799.1,5.16061]
[1746412612082,10.0603,1799.2,1799.1,5.16061]
[1746412612276,10.0603,1799.2,1799.1,8.52831]
[1746412613787,11.17184,1799.2,1799.1,7.4167]
[1746412613987,11.17184,1799.2,1799.1,8.52831]
[1746412614286,10.0603,1799.2,1799.1,8.52831]
[1746412615282,10.0603,1799.2,1799.1,5.16061]
[1746412615486,11.17184,1799.2,1799.1,4.049]
[1746412616182,11.17184,1799.2,1799.1,5.16061]
[1746412616382,10.0603,1799.2,1799.1,5.16061]
[1746412616687,11.17184,1799.2,1799.1,5.16061]
[1746412616886,10.0603,1799.2,1799.1,5.16061]
[1746412617486,11.17184,1799.2,1799.1,5.16061]
[1746412617689,10.0603,1799.2,1799.1,5.16061]
[1746412618892,11.17184,1799.2,1799.1,5.16061]
[1746412619083,11.17184,1799.2,1799.1,4.049]
[1746412619783,10.0603,1799.2,1799.1,5.16061]
[1746412622386,10.0603,1799.2,1799.1,8.58021]
[1746412622793,10.0603,1799.2,1799.1,5.16061]
[1746412623785,11.17184,1799.2,1799.1,5.16061]
[1746412624193,10.0603,1799.2,1799.1,5.16061]
[1746412626697,11.17184,1799.2,1799.1,5.16061]
[1746412626997,10.0603,1799.2,1799.1,5.16061]
[1746412629896,11.17184,1799.2,1799.1,4.049]
[1746412630090,14.37964,1799.2,1799.1,4.049]
[1746412630398,18.2681,1799.2,1798.9,1.11173]
[1746412630702,8.06145,1799.1,1798.9,1.1117]
[1746412630903,4.63297,1799.0,1798.9,1.1117]
[1746412631102,3.5213,1799.0,1798.9,1.1117]
[1746412632099,3.4285,1799.1,1799.0,1.11167]
[1746412632299,6.9498,1799.1,1799.0,1.11167]
[1746412632803,6.9498,1799.1,1798.9,3.3498]
[1746412633100,3.5889,1799.0,1798.9,1.11171]
[1746412633601,4.70057,1799.0,1798.9,1.11171]
[1746412634102,8.43257,1799.0,1798.9,1.11171]
[1746412634299,1.11173,1798.9,1798.7,3.961]
[1746412634504,6.7853,1798.8,1798.7,5.07285]
[1746412634892,10.3742,1798.8,1798.7,5.07285]
[1746412635097,10.3742,1798.8,1798.7,8.40975]
[1746412635405,14.1062,1798.8,1798.7,8.40975]
[1746412636405,3.732,1798.8,1798.7,8.40975]
[1746412636606,3.732,1798.8,1798.7,11.42605]
[1746412637102,3.4127,1799.0,1798.9,1.11173]
[1746412638611,7.1447,1799.0,1798.9,1.11173]
[1746412640113,8.25637,1799.0,1798.8,1.11174]
[1746412640412,7.0685,1798.9,1798.8,1.11174]
[1746412641107,10.8005,1798.9,1798.8,1.11174]
[1746412642317,11.91225,1798.9,1798.7,5.07282]
[1746412642513,6.9693,1798.8,1798.7,5.07282]
[1746412643014,3.732,1798.9,1798.8,1.11179]
[1746412643218,7.35772854,1799.1,1799.0,1.11167]
[1746412643409,3.69722854,1799.1,1799.0,5.07267]
[1746412643813,3.69722854,1799.1,1799.0,13.28047]
[1746412644119,3.69722854,1799.1,1799.0,16.29757]
[1746412644818,3.69722854,1799.3,1799.2,1.11154]
[1746412645021,3.69722854,1799.3,1799.2,8.28034]
[1746412648223,10.98132854,1799.3,1799.2,8.28034]
[1746412648524,7.2841,1799.3,1799.2,8.28034]
[1746412650527,3.732,1799.3,1799.2,8.28034]
[1746412652225,11.1304,1799.3,1799.2,8.28034]
[1746412655534,3.732,1799.3,1799.2,8.28034]
[1746412656133,14.28232854,1799.4,1799.3,1.11148]
[1746412656428,14.28232854,1799.4,1799.2,3.961]
[1746412656635,7.79848,1799.3,1799.2,3.961]
[1746412657028,12.79848,1799.3,1799.2,3.961]
[1746412657223,16.53048,1799.3,1799.2,3.961]
[1746412657427,13.32268,1799.3,1799.2,3.961]
[1746412657822,16.53048,1799.3,1799.2,3.961]
[1746412658228,11.53048,1799.3,1799.2,3.961]
[1746412659228,16.53048,1799.3,1799.2,3.961]
[1746412660836,32.04167124,1799.3,1799.2,3.961]
[1746412661635,1.11158,1799.2,1799.0,1.11167]
[1746412661834,3.6548,1799.1,1799.0,1.11167]
[1746412662031,8.40271,1799.1,1798.9,3.931]
[1746412662330,4.70767,1799.0,1798.9,3.931]
[1746412663229,7.328,1799.0,1798.9,5.04273]
[1746412664228,7.328,1799.0,1798.9,8.70443]
[1746412667640,2.34589,1799.0,1798.9,16.91223]
[1746412667838,2.34589,1799.0,1798.9,20.14303]
[1746412668339,19.21059124,1799.3,1799.2,1.11154]
[1746412668541,19.21059124,1799.3,1799.2,5.04254]
[1746412669140,22.94259124,1799.3,1799.2,8.45704]
[1746412669342,22.94259124,1799.3,1799.2,5.04254]
[1746412669841,16.61082347,1799.3,1799.2,5.04254]
[1746412671636,16.61082347,1799.3,1799.2,3.931]
[1746412671843,22.72230347,1799.3,1799.2,3.931]
[1746412672043,1.11163,1799.1,1798.9,3.931]
[1746412672238,7.1065,1799.0,1798.9,3.931]
[1746412673243,10.8385,1799.0,1798.9,3.931]
[1746412673544,10.8385,1799.0,1798.9,5.04273]
[1746412674845,11.95017,1799.0,1798.9,3.931]
[1746412676140,11.95017,1799.0,1798.8,1.11178]
[1746412676345,7.0988,1798.9,1798.8,1.11178]
[1746412677147,10.8308,1798.9,1798.8,1.11178]
[1746412677946,10.8308,1798.9,1798.7,3.931]
[1746412678146,3.5297,1798.8,1798.7,3.931]
[1746412678546,3.5297,1798.8,1798.7,5.04281]
[1746412679147,7.2617,1798.8,1798.7,5.04281]
[1746412681151,3.732,1798.8,1798.7,5.04281]
[1746412681446,3.732,1798.8,1798.7,8.64181]